Cogmind - Beta 15 @@@ ROGUE MODE // 2025.09.14 @ 15:24:47 Player: beans Result: Destroyed by H-55 Commando with Assault Rifle Performance ------------- Evolutions (2) 1000 Regions Visited (6) 1200 Robots Destroyed (77) 385 Value Destroyed (1846) 1846 Prototype IDs (0) 0 Alien Tech Used (0) 0 Bonus (804) 804 TOTAL SCORE: 5235 Bonus ------- High Alert Combat Kills 28 Follower Combat Kills 76 Entered Garrisons 200 Used RIF Installer 500 Cogmind --------- Core Integrity 0/550 Matter 296/300 Energy 52/100 System Corruption 0% Temperature Cool (0) Movement Core (100) Ox1 Location -8/Materials Parts ------- > --- POWER (1) -------- (None) > --- PROPULSION (2) --- (None) > --- UTILITY (6) ------ Actuator Array > --- WEAPON (2) ------- (None) > --- INVENTORY (5) ---- Authchip [R/Combat] Authchip [R/Combat] Authchip [Armor] Authchip [Weapon] Relay Coupler [Behemoth] (8) Peak State ------------ > --- POWER ------------ Nuclear Core > --- PROPULSION ------- Armored Treads Armored Treads > --- UTILITY ---------- Improved Heat Sink Improved Heat Sink Improved Cooling System Large Storage Unit Armor Integrity Analyzer Hardlight Generator > --- WEAPON ----------- Particle Gun Ion Cannon > --- INVENTORY -------- Armored Treads Improved Hover Unit Actuator Array Authchip [R/NC] Authchip [R/Combat] Authchip [R/Combat] Authchip [Storage] Authchip [Armor] Authchip [Weapon] Relay Coupler [Behemoth] Particle Gun Particle Gun Assault Rifle [Rating: 36] Favorites ----------- Power Nuclear Core Engine Improved Ion Engine Power Core Nuclear Core Propulsion Light Treads Treads Light Treads Hover Unit Improved Hover Unit Utility Heat Sink Device Heat Sink Storage Large Storage Unit Processor Armor Integrity Analyzer Weapon Particle Gun Energy Gun Particle Gun Energy Cannon Ion Cannon Ballistic Gun Assault Rifle Launcher Grenade Launcher Build | -11 -10 -10 -9 -8 -8 -8 ------- Run | Yrd Mat Min Mat Mat Gar Mat Slots Evolved 4 | . . . 2 2 . . Power . | . . . . . . . Propulsion . | . . . . . . . Utility 4 | . . . 2 2 . . Weapon . | . . . . . . . Parts Attached 32 | 4 3 . 9 10 4 2 Power 3 | . . . 1 1 . 1 Engine 1 | . . . 1 . . . Core 2 | . . . . 1 . 1 Reactor . | . . . . . . . Propulsion 7 | 2 . . 1 3 . 1 Treads 6 | 2 . . 1 2 . 1 Leg . | . . . . . . . Wheel . | . . . . . . . Hover 1 | . . . . 1 . . Flight . | . . . . . . . Utility 13 | . . . 5 4 4 . Device 8 | . . . 3 2 3 . Storage 3 | . . . 2 1 . . Processor 2 | . . . . 1 1 . Hackware . | . . . . . . . Protection . | . . . . . . . Artifact . | . . . . . . . Weapon 9 | 2 3 . 2 2 . . Energy Gun 6 | 1 2 . 2 1 . . Energy Cannon 1 | . . . . 1 . . Ballistic Gun 1 | 1 . . . . . . Ballistic Cannon . | . . . . . . . Launcher 1 | . 1 . . . . . Special Weapon . | . . . . . . . Impact Weapon . | . . . . . . . Slashing Weapon . | . . . . . . . Piercing Weapon . | . . . . . . . Special Melee Weapon . | . . . . . . . Unidentified Prototypes . | . . . . . . . Parts Lost 23 | . . . 4 4 4 11 Power 3 | . . . . 1 1 1 Propulsion 7 | . . . 2 1 . 4 Utility 6 | . . . 2 . 1 3 Weapon 7 | . . . . 2 2 3 Highest Loss Streak 8 | . . . 1 3 2 8 To Critical Strikes . | . . . . . . . Average Backups 8 | . 1 4 4 10 12 9 Power . | . . . . . . . Propulsion . | . . . . . 2 1 Utility 4 | . . . . 6 7 7 Weapon 3 | . 1 4 4 4 2 . Tool/Special . | . . . . . . . Unused Backups 7 | . . . . . . 7 Power . | . . . . . . . Propulsion . | . . . . . . . Utility 7 | . . . . . . 7 Weapon . | . . . . . . . Tool/Special . | . . . . . . . Average Slot Usage (%) 63 | . 57 57 63 54 82 50 Engine 2 | . . . 5 3 . . Core 3 | . . . . 4 7 2 Treads 15 | . 28 28 18 8 18 11 Hover 1 | . . . . 3 . 2 Device 14 | . . . 15 14 21 9 Storage 5 | . . . 2 9 9 8 Processor 2 | . . . . 1 8 8 Energy Gun 14 | . 16 28 21 8 11 6 Energy Cannon 2 | . . . . 3 5 . Peak Build Rating 36 | 4 6 6 14 24 36 28 Average Rating 14 | 2 4 6 9 14 27 17 On Entrance 11 | . 4 6 6 12 24 25 Naked Turns . | . . . . . . . Heaviest Build 102 | 3 6 6 95 102 43 38 Greatest Support 40 | 40 40 40 40 40 40 40 Greatest Overweight (x) 28 | . . . 4 28 1 3 Average Overweight (x) 1 | . . . . 3 . . Largest Inventory Capacity 25 | 5 5 5 25 25 15 15 Average Capacity 13 | 5 5 5 8 21 15 14 Most Carried 15 | 4 4 4 10 14 15 12 Average Carried 8 | . 1 4 4 10 12 9 Final Capacity 25 | 5 5 5 25 15 15 5 Final Carried 12 | . 4 4 10 12 11 5 Class Distribution -------------------- 98% | Mutant Dominant Class ---------------- Mutant | -10/Materials Mutant | -10/Mines Mutant | -9/Materials Mutant | -8/Materials Mutant | -8/Garrison Mutant | -8/Materials Resources | -11 -10 -10 -9 -8 -8 -8 ----------- Run | Yrd Mat Min Mat Mat Gar Mat Matter Collected 765 | 227 3 106 180 135 60 54 Remotely . | . . . . . . . Salvage Created 2265 | . 135 156 989 415 480 90 Parts 148 | . 14 14 60 29 28 3 Haulers Intercepted 4 | . . . 3 1 . . Recyclers Shooed 4 | . 1 . 2 1 . . Parts Field Recycled . | . . . . . . . Retrieved Matter . | . . . . . . . Parts Self-Destructed . | . . . . . . . Prevented . | . . . . . . . Kills | -11 -10 -10 -9 -8 -8 -8 ------- Run | Yrd Mat Min Mat Mat Gar Mat Combat Hostiles Destroyed 52 | . 3 3 20 10 14 2 Guns 32 | . . 3 13 4 10 2 Cannons 7 | . . . . 3 4 . AOE 11 | . 3 . 6 2 . . Classes Destroyed 12 | . 4 1 6 . 1 . Worker 4 | . . 2 1 . . 1 Builder 3 | . 2 . 1 . . . Tunneler 1 | . . . 1 . . . Hauler 4 | . . . 3 1 . . Recycler 5 | . 1 1 3 . . . Operator 2 | . 1 . . 1 . . Watcher 6 | . . . 3 3 . . Swarmer 27 | . 3 3 8 7 6 . Grunt 13 | . . . 7 2 2 2 Duelist 1 | . . . 1 . . . Sentry 10 | . . . 4 1 5 . Specialist 1 | . . . . . 1 . Best Kill Streak 8 | . 7 6 8 4 3 3 Combat Bots Only 6 | . 3 3 6 3 3 2 Max Kills in Single Turn 4 | . 2 1 4 2 2 1 Gunslinging 1 | . . . . . 1 . Exploded 2 | . 2 . 2 1 . . Melee . | . . . . . . . Uniques/NPCs Destroyed . | . . . . . . . Combat | -11 -10 -10 -9 -8 -8 -8 -------- Run | Yrd Mat Min Mat Mat Gar Mat Hostile Shots Fired 417 | . 4 6 128 73 89 117 Missed 139 | . 1 2 48 30 20 38 Hits 278 | . 3 4 80 43 69 79 Projectile 278 | . 3 4 80 43 69 79 Critical Strikes 6 | . . . 2 2 . 2 Damage Taken 3648 | . 30 85 969 497 834 1233 Core 857 | . . 63 243 57 97 397 Absorbed by Shields 104 | . . . . 16 88 . Core Remaining (%) 71 | 100 . 74 39 . . . Volleys Fired 199 | 1 7 12 71 37 45 26 Largest 2 | 2 2 2 2 2 2 2 Hottest 130 | 60 70 130 130 125 130 130 Shots Fired 379 | 2 14 24 139 69 84 47 Gun 316 | 2 8 24 133 41 61 47 Cannon 48 | . . . . 25 23 . Launcher 15 | . 6 . 6 3 . . Special . | . . . . . . . Kinetic 15 | 1 1 . . . . 13 Thermal 349 | 1 7 24 133 66 84 34 Explosive 15 | . 6 . 6 3 . . Electromagnetic . | . . . . . . . Robot Hit Streak 16 | 1 4 4 16 10 12 8 Robot Miss Streak 4 | 1 . 2 3 4 3 4 Penetration Max . | . . . . . . . Secondary Targets 6 | . . 1 2 . 2 1 Max Gunslinging Chain 1 | . . 1 1 . 1 1 Shots Hit Robots 191 | 1 4 6 72 39 39 30 Core Hits 103 | 1 8 6 40 19 21 8 Critical Kills 1 | . . . . 1 . . Critical Parts Destroyed . | . . . . . . . Critical Strikes 14 | . . 1 6 3 3 1 Burn 13 | . . 1 6 2 3 1 Meltdown 1 | . . . . 1 . . Melee Attacks . | . . . . . . . Impact . | . . . . . . . Slashing . | . . . . . . . Piercing . | . . . . . . . Sneak Attacks . | . . . . . . . Combat Hostiles . | . . . . . . . Follow-up Attacks . | . . . . . . . Damage Inflicted 4133 | 11 400 134 1546 836 680 526 Guns 2541 | 11 45 96 1057 359 447 526 Cannons 579 | . . . . 346 233 . Explosions 1013 | . 355 38 489 131 . . Melee . | . . . . . . . Ramming . | . . . . . . . Kinetic 129 | . 12 . . . . 117 Thermal 3029 | 11 33 134 1057 705 680 409 Explosive 975 | . 355 . 489 131 . . Electromagnetic . | . . . . . . . Impact . | . . . . . . . Slashing . | . . . . . . . Piercing . | . . . . . . . Highest Corruption . | . . . . . . . Average Corruption . | . . . . . . . Corruption Purged . | . . . . . . . Corruption Blocked . | . . . . . . . Overload Shots . | . . . . . . . Overflow Damage 50 | . . . 10 40 . . Projectiles 8 | . . . . 8 . . Explosions 42 | . . . 10 32 . . Melee . | . . . . . . . Knockbacks . | . . . . . . . Impact . | . . . . . . . Kinetic . | . . . . . . . Secondary . | . . . . . . . Self-Inflicted Damage 120 | . 4 57 39 20 . . Shots 4 | . 1 1 1 1 . . Rammed . | . . . . . . . Targets Rammed . | . . . . . . . Kicked . | . . . . . . . Crushed . | . . . . . . . Highest Temperature 270 | . . 270 197 84 109 255 Average Temperature 65 | . . 99 70 24 37 118 Received Heat Transfer 1190 | . . . 255 213 200 522 Siege Activations . | . . . . . . . Martial Activations . | . . . . . . . Shielding Activations . | . . . . . . . Robots Disrupted . | . . . . . . . Combat Hostiles . | . . . . . . . Robots Corrupted . | . . . . . . . Combat Hostiles . | . . . . . . . Parts Fried . | . . . . . . . Impact Corruptions . | . . . . . . . Robots Melted 2 | . . . 1 1 . . Combat Hostiles 2 | . . . 1 1 . . Parts Melted 21 | . . . 13 4 3 1 Heat Transferred 7772 | 25 75 346 3034 1591 1665 1036 Parts Sabotaged . | . . . . . . . Parts Stolen . | . . . . . . . Parts Stripped . | . . . . . . . Power Chain Reactions . | . . . . . . . Alert | -11 -10 -10 -9 -8 -8 -8 ------- Run | Yrd Mat Min Mat Mat Gar Mat Maximum Alert Level 2 | . . . 1 . 2 1 Low Security (%) 61 | 100 100 100 43 100 29 33 Level 1 33 | . . . 56 . 45 66 Level 2 4 | . . . . . 25 . Level 3 . | . . . . . . . Level 4 . | . . . . . . . Level 5 . | . . . . . . . High Security . | . . . . . . . Max Security . | . . . . . . . Peak Influence 554 | . 112 148 333 187 554 291 Initial 269 | . . 27 49 122 117 269 Average 157 | . 44 117 185 39 311 224 Influence Increases 1889 | . 137 131 657 360 477 127 Destroy 0b10 Robot/C 1080 | . 60 60 400 200 300 60 Destroy 0b10 Robot/NC 125 | . 20 15 60 25 . 5 Destroy Leader 220 | . 10 10 112 48 30 10 Allied During Kill 12 | . . . . . 11 1 Successful Hack 25 | . . . . 4 21 . Disable Machine 105 | . 15 30 . 45 . 15 Anti-Garrison Action 50 | . . . . . 50 . Destroy Structure 122 | . 32 16 25 23 20 6 Partial Spotted 15 | . . . . . 15 . Lose Combat Pursuer 135 | . . . 60 15 30 30 Influence Decreases 1763 | . 65 75 494 470 104 555 Entered New Map 642 | . . 45 79 169 64 285 Time Decay 891 | . 65 30 375 281 . 140 Lost Part 210 | . . . 40 20 40 110 Lost Ally 20 | . . . . . . 20 Squads Dispatched 7 | . . . 4 1 . 2 Investigation 1 | . . . 1 . . . Extermination . | . . . . . . . Reinforcement 6 | . . . 3 1 . 2 Assault . | . . . . . . . Garrison . | . . . . . . . Intercept . | . . . . . . . Searches Triggered . | . . . . . . . Construction Impeded 2 | . . . 1 . . 1 Haulers Reinforced . | . . . . . . . Active Scanning Responses . | . . . . . . . Cargo Convoy Interrupts . | . . . . . . . Stealth | -11 -10 -10 -9 -8 -8 -8 --------- Run | Yrd Mat Min Mat Mat Gar Mat Distress Signals 6 | . . . 4 1 . 1 Communications Jammed . | . . . . . . . Distress Signals . | . . . . . . . Times Spotted 82 | . 4 2 30 14 17 15 Peak Tracking Total 8 | . 1 2 7 4 3 8 Tactical Retreats 9 | . . . 4 1 2 2 Traps | -11 -10 -10 -9 -8 -8 -8 ------- Run | Yrd Mat Min Mat Mat Gar Mat Traps Triggered 5 | . . . 1 . 4 . Indirectly . | . . . . . . . Trap Hack Attempts . | . . . . . . . Triggered . | . . . . . . . Disarmed . | . . . . . . . Reprogrammed . | . . . . . . . Reused . | . . . . . . . Traps Extracted . | . . . . . . . Installed . | . . . . . . . Triggered . | . . . . . . . Machines | -11 -10 -10 -9 -8 -8 -8 ---------- Run | Yrd Mat Min Mat Mat Gar Mat Machines Disabled 8 | . 1 2 . 3 1 1 Max in Single Turn 2 | . 1 2 . 1 1 . Garrison Relay 1 | . . . . . 1 . Machines Repaired . | . . . . . . . Machines Dismantled . | . . . . . . . Machines Sabotaged . | . . . . . . . Overloaded Fab Kills . | . . . . . . . Hacking | -11 -10 -10 -9 -8 -8 -8 --------- Run | Yrd Mat Min Mat Mat Gar Mat Machines Accessed 5 | . 1 . 1 1 2 . Terminals 4 | . 1 . 1 . 2 . Fabricators . | . . . . . . . Repair Stations . | . . . . . . . Recycling Units . | . . . . . . . Scanalyzers . | . . . . . . . Garrison Access 1 | . . . . 1 . . Total Hacks 8 | . 1 . 2 3 2 . Successful 5 | . 1 . 1 1 2 . Failed 3 | . . . 1 2 . . Catastrophic . | . . . . . . . Database Lockouts . | . . . . . . . Manual 2 | . . . 2 . . . Terminals 5 | . 1 . 2 . 2 . Fabricators . | . . . . . . . Repair Stations . | . . . . . . . Recycling Units . | . . . . . . . Scanalyzers . | . . . . . . . Garrison Access 3 | . . . . 3 . . Terminal Hacks 4 | . 1 . 1 . 2 . Open Door 1 | . . . . . 1 . Emergency Access Points 1 | . . . . . 1 . Alert Level 1 | . . . 1 . . . Hauler Manifests 1 | . 1 . . . . . Fabricator Hacks . | . . . . . . . Repair Station Hacks . | . . . . . . . Recycling Unit Hacks . | . . . . . . . Scanalyzer . | . . . . . . . Garrison Access Hacks 1 | . . . . 1 . . Unlock Access 1 | . . . . 1 . . Unauthorized Hacks . | . . . . . . . Terminals . | . . . . . . . Fabricators . | . . . . . . . Repair Stations . | . . . . . . . Recycling Units . | . . . . . . . Scanalyzers . | . . . . . . . Garrison Access . | . . . . . . . Data Cores Recovered 1 | . 1 . . . . . Used . | . . . . . . . Hacking Detections 3 | . . . 1 1 1 . Full Trace Events . | . . . . . . . Feedback Events . | . . . . . . . Feedback Blocked . | . . . . . . . Robot Schematics Acquired . | . . . . . . . Robots Built . | . . . . . . . Authchips . | . . . . . . . Time . | . . . . . . . Total Robot Build Rating . | . . . . . . . Part Schematics Acquired . | . . . . . . . Parts Built . | . . . . . . . Authchips . | . . . . . . . Time . | . . . . . . . Total Part Build Rating . | . . . . . . . Parts Repaired . | . . . . . . . Time . | . . . . . . . Parts Recycled . | . . . . . . . Recycled Matter . | . . . . . . . Retrieved Matter . | . . . . . . . Retrieved Components . | . . . . . . . Parts Scanalyzed . | . . . . . . . Part Schematics Acquired . | . . . . . . . Parts Damaged . | . . . . . . . Bothacking | -11 -10 -10 -9 -8 -8 -8 ------------ Run | Yrd Mat Min Mat Mat Gar Mat Used RIF Installer 1 | . . . . . 1 . Robots Hacked . | . . . . . . . Non-combat . | . . . . . . . Combat . | . . . . . . . Robot Hacks Applied . | . . . . . . . Relay Couplers Released 3 | . . . . . 3 . Machine Destruction 3 | . . . . . 3 . Fabnet Peak Effective % . | . . . . . . . Robots Rewired . | . . . . . . . Allies Hacked . | . . . . . . . Hacks Repelled . | . . . . . . . Allies | -11 -10 -10 -9 -8 -8 -8 -------- Run | Yrd Mat Min Mat Mat Gar Mat Total Allies 2 | . . . . . 2 . Largest Group 2 | . . . . . 2 2 Highest-Rated Group 59 | . . . . . 59 59 Highest-Rated Ally 39 | . . . . . 39 39 Total Orders . | . . . . . . . Ally Attacks 21 | . . . . . 7 14 Total Damage 250 | . . . . . 99 151 Kills 3 | . . . . . 1 2 Allies Corrupted . | . . . . . . . Allies Melted . | . . . . . . . Intel | -11 -10 -10 -9 -8 -8 -8 ------- Run | Yrd Mat Min Mat Mat Gar Mat Active Infowar (turns) 479 | . . . . 160 319 . Optics 479 | . . . . 160 319 . Robot Analysis Total . | . . . . . . . Derelict Logs Recovered . | . . . . . . . Drone Launches . | . . . . . . . Drone Recoveries . | . . . . . . . Exploration | -11 -10 -10 -9 -8 -8 -8 ------------- Run | Yrd Mat Min Mat Mat Gar Mat Turns Passed 3404 | 58 222 62 1120 982 672 288 Spaces Moved 1199 | 48 118 17 463 208 234 111 Core 45 | 26 . . 15 1 . 3 Treads 1079 | 22 118 17 448 156 234 84 Legs . | . . . . . . . Wheels . | . . . . . . . Hover 75 | . . . . 51 . 24 Flight . | . . . . . . . Fastest Speed 50 | 50 160 160 160 170 170 60 Average Speed 223 | 100 160 160 187 404 214 184 Slowest Speed 1450 | 160 160 160 480 1450 250 260 Overloaded Moves . | . . . . . . . Propulsion Burnouts . | . . . . . . . Robots Hopped . | . . . . . . . Potential Cave-ins . | . . . . . . . Cave-ins Triggered . | . . . . . . . Exploration Rate (%) 25 | 4 31 6 52 24 45 14 Regions Visited 6 Branch Regions 1 Pre-discovered Areas . | . . . . . . . Known Exits Taken 1 | . . . . 1 . . Unknown Exits Taken 4 | 1 1 1 1 . . . Scrap Searched 1 | . . 1 . . . . Spaces Dug 12 | . 5 . . 7 . . Terrain Destroyed 90 | . 32 16 21 21 . . Melee . | . . . . . . . Projectile 2 | . . . . 2 . . AOE 88 | . 32 16 21 19 . . Terrain Rammed . | . . . . . . . Walls Destroyed . | . . . . . . . Machines Disabled . | . . . . . . . Actions | -11 -10 -10 -9 -8 -8 -8 --------- Run | Yrd Mat Min Mat Mat Gar Mat Total 1544 | 56 136 28 574 281 321 148 Wait 58 | . 3 . 16 13 26 . Move 1192 | 47 117 16 462 207 232 111 Hop . | . . . . . . . Pick Up 37 | 4 5 . 10 10 5 3 Fast Attach 4 | . . . 4 . . . Attach 27 | 4 . . 4 9 5 5 Detach 1 | . . . . 1 . . Swap 12 | . 3 . 5 3 1 . Drop 10 | . 1 . 2 1 3 3 Fire 199 | 1 7 12 71 37 45 26 Melee . | . . . . . . . Ram . | . . . . . . . Kick . | . . . . . . . Crush . | . . . . . . . Escape Stasis 4 | . . . . . 4 . Rewire . | . . . . . . . Trap . | . . . . . . . Miscellaneous . | . . . . . . . Route ------- -11/Scrapyard -10/Materials -10/Mines -9/Materials (discovered 4 exits: *Mat x2 / [*Min x2]) -8/Materials -8/Garrison -8/Materials History --------- Turn | Location | Event 6 | -11/Scrapyard | Discovered new exit (range 14) 59 | -11/Scrapyard | Entered Materials 225 | -10/Materials | Discovered new exit (range 13) 281 | -10/Materials | Entered Mines 290 | -10/Mines | Discovered new exit (range 10) 305 | -10/Mines | Build established: Mutant 343 | -10/Mines | Entered Materials 343 | -9/Materials | Evolved 2 slots: Utility x2 500 | -9/Materials | Discovered new exit (range 6) 560 | -9/Materials | Discovered new exit (range 13) 993 | -9/Materials | Discovered new exit (range 8) 1139 | -9/Materials | Discovered new exit (range 16) 1359 | -9/Materials | Core integrity fell below 50% 1463 | -9/Materials | Entered another Materials area 1463 | -8/Materials | Evolved 2 slots: Utility x2 1876 | -8/Materials | Lost 3 parts (1n2w) 2427 | -8/Materials | Identified exit to Garrison 2445 | -8/Materials | Entered Garrison 2507 | -8/Garrison | Triggered checkpoint 2625 | -8/Garrison | Installed Relay Interface Framework 2645 | -8/Garrison | Garrison Relay disabled 2845 | -8/Garrison | Triggered checkpoint 2865 | -8/Garrison | Triggered checkpoint 3014 | -8/Garrison | Rescued a captive Derelict 3016 | -8/Garrison | Rescued a captive Derelict 3077 | -8/Garrison | Triggered checkpoint 3093 | -8/Garrison | Discovered new exit (range 10) 3117 | -8/Garrison | Entered Materials 3117 | -8/Materials | Accompanied by 2 allies 3252 | -8/Materials | Core integrity fell below 50% 3279 | -8/Materials | Lost 8 parts (1p2n2u3w) 3386 | -8/Materials | Core integrity fell below 20% 3405 | -8/Materials | Destroyed by H-55 Commando with Assault Rifle Last Messages --------------- Penetrated by Slug. Assault Rifle destroyed. Slug penetrates Wall. Penetrated by Slug. Arm. Treads destroyed. Slug penetrates Wall. Penetrated by Slug. Acquired 1 matter. Penetrated by Slug. M-13 Machinist repairs G-47 Trooper. Armor Integrity Analyzer destroyed. Dropped Lrg. Storage Unit. Dropped Authchip [Storage]. M-13 Machinist repairs G-47 Trooper Imp. Heat Sink. Acquired Authchip [Weapon]. Dropped Authchip [R/NC]. Acquired Authchip [R/Combat]. Imp. Hover Unit destroyed. Penetrated by Slug. Map ----- +----------------------------------------------------+ | ?????????????????????????????????????????????????? | | ?????????????????????????????????????????????????? | | ?????????????????????????????????????????????????? | | ?????????????????????????????????????????????????? | | ?????????????????????????????????????????????????? | | ?????????????????????????????????????????????????? | | ?????????????????????#????????####???????????????? | | ????????????????###### ??"???? #???????????????? | | ?################ ## "?"???? ????????????????? | | ?# " ## ? ???? ????????????????? | | ?# ############## ## !????# #???????????#####? | | ?# #????????????## ### / ????# #???????????# #? | | ## ##????????????# ######+##### ##??????????# #? | | # #????????????# #??????????# ## | | # " #????????????+ +??????????# | | # #????????????# #??????????# | | ## ##????????????# ######gh #??????????# | | ?# #?????????????# #?#### % % ############ | | ## ##????????????# #????# % % | | # !############## #????# % | | # #????#! %% | | # ############## #????#! % | | ##/##????????????# #????# ! """ | | ????????????# #????# "R" | | #???????????# #????# ####### ####" " " | | """ #???????????# #????#@#?????# ^ ^ #???# | | """ #???????????+ #????# #?????# ^ ^#???# | | """ #???????????# #????# #?????# #???# | | """ #???????????? ?????# #?????# #???# | | #???????????? ?????# #?????+ #???# # | | #???##???????????? ?????# #?????# #???####### | | ?????????????????? ?????# +?????# #?????????? | | ?????????????????? ?????# #?????# #?????????? | | ?????????????????? ?????# #?????# #?????????? | | ?????????????????? ?????? ?????? ?????????? | | ?????????????????????????#??????########?????????? | | ?????????????????????????????????????????????????? | | ?????????????????????????????????????????????????? | | ?????????????????????????????????????????????????? | | ?????????????????????????????????????????????????? | | ?????????????????????????????????????????????????? | | ?????????????????????????????????????????????????? | | ?????????????????????????????????????????????????? | | ?????????????????????????????????????????????????? | | ?????????????????????????????????????????????????? | | ?????????????????????????????????????????????????? | | ?????????????????????????????????????????????????? | | ?????????????????????????????????????????????????? | | ?????????????????????????????????????????????????? | | ?????????????????????????????????????????????????? | +----------------------------------------------------+ Best States ------------- Heat Dissipation 59 Coolant Potential 50 Energy Generation 14 Energy Capacity 265 Matter Stores 300 Matter Capacity 300 Sight Range 18 Terrain Scan Density 10 Evasion (%) 50 Armor Integrity Analysis 30 Recoil Reduction 2 Authchip Count 6 Item Schematics ----------------- None Robot Schematics ------------------ None Fabricated ------------ Nothing Repaired ---------- Nothing Alien Tech Used ----------------- None Achievements -------------- None Challenges ------------ None Game ------ Seed NullPhasingCharge Manual? 0 Play Time 00:20:56 Cumulative 139.0 hours Start 2025.09.14 @ 11:46:45 End 2025.09.14 @ 15:24:47 Sessions 1 Manual Loads 0 Difficulty Rogue Special Mode None Game No. 470 Rogue 470 Adventurer 0 Explorer 0 Win Type - Total 0 Types 0/0/0/0/0/0/0/0/0/0 Lore% 52 Gallery% 49 Achievement% 36 Wizard Run 0 Options --------- Layout 2 ASCII 0 Keyboard 0 Movement Mouse Keybinds 0 Fullscreen 2 Font 24/Smallcaps Map View 50x44 Zoom Use 0% Tactical HUD 0 Map Filters NONE Filters NONE Steam 1 RUN: 74f6fc1d-43c8-43f3-a78e-26115b8bd46a